bitfinex-derivatives/quotes_ETHF0:USTF0_20240904
["timestamp","ask_amount","ask_price","bid_price","bid_amount"]
[1725414497712,3.21411287,2378.0,2377.7,0.42063]
[1725414498216,3.21411287,2378.0,2377.8,0.42061]
[1725414498819,3.21411287,2378.0,2377.5,0.00631287]
[1725414498820,0.00631287,2378.0,2377.9,0.4206]
[1725414499022,0.00631287,2378.0,2377.8,0.42061]
[1725414499414,0.00631287,2378.0,2377.5,0.00631287]
[1725414499615,0.00631287,2378.0,2377.8,0.42061]
[1725414500015,0.00631287,2378.0,2377.7,0.42062]
[1725414500318,0.00631287,2378.0,2377.5,0.00631287]
[1725414500722,0.00631287,2378.0,2377.7,0.42062]
[1725414501207,3.21411287,2378.0,2377.5,0.00631287]
[1725414501407,0.42065,2377.6,2377.5,0.00631287]
[1725414501615,3.2078,2377.7,2377.5,0.00631287]
[1725414501616,3.62844,2377.7,2377.5,0.00631287]
[1725414502012,0.42065,2377.6,2377.5,0.00631287]
[1725414502222,6.88695,2377.6,2377.5,0.00631287]
[1725414503534,6.4663,2377.6,2377.5,0.00631287]
[1725414503715,6.88695,2377.6,2377.5,0.00631287]
[1725414503915,2.2607,2377.6,2377.5,0.00631287]
[1725414504128,2.68135,2377.6,2377.5,0.00631287]
[1725414504823,2.2607,2377.6,2377.5,0.00631287]
[1725414505035,2.68135,2377.6,2377.5,0.00631287]
[1725414505221,6.4671,2377.6,2377.5,0.00631287]
[1725414505616,3.32570824,2377.7,2377.5,0.00631287]
[1725414505819,3.32570824,2377.7,2377.5,0.42697287]
[1725414506025,3.74634824,2377.7,2377.5,0.00631287]
[1725414506426,0.42065,2377.6,2377.5,0.00631287]
[1725414506627,3.74634824,2377.7,2377.5,0.00631287]
[1725414507522,3.32570824,2377.7,2377.5,0.00631287]
[1725414507926,3.74634824,2377.7,2377.5,0.00631287]
[1725414508126,3.32570824,2377.7,2377.5,0.00631287]
[1725414508328,3.74634824,2377.7,2377.5,0.00631287]
[1725414508530,4.62625,2377.6,2377.5,0.00631287]
[1725414508923,4.2056,2377.6,2377.5,0.00631287]
[1725414509126,3.32570824,2377.7,2377.5,0.00631287]
[1725414509331,3.32570824,2377.7,2377.6,0.42065]
[1725414509332,0.11790824,2377.7,2377.6,0.42065]
[1725414509522,4.75150287,2378.0,2377.5,0.42697287]
[1725414509523,0.4206,2377.9,2377.5,0.42697287]
[1725414509718,4.33091287,2378.0,2377.5,0.00631287]
[1725414509926,0.42064,2377.7,2377.5,0.00631287]
[1725414510833,3.2078,2377.8,2377.5,0.00631287]
[1725414510834,3.62842,2377.8,2377.5,0.42697287]
[1725414511130,3.2078,2377.8,2377.6,0.42065]
[1725414511723,3.2078,2377.8,2377.5,2.30241287]
[1725414511724,3.2078,2377.8,2377.5,0.00631287]
[1725414511929,0.42065,2377.6,2377.5,0.00631287]
[1725414512428,3.62842,2377.8,2377.5,0.42697287]
[1725414512626,0.42064,2377.7,2377.5,0.00631287]
[1725414512930,0.42065,2377.6,2377.5,0.00631287]
[1725414513728,11.67868,2377.6,2377.5,0.00631287]
[1725414513923,4.62705,2377.6,2377.5,0.00631287]
[1725414514121,2.67884,2377.7,2377.5,0.00631287]
[1725414514328,0.42063,2377.7,2377.5,0.00631287]
[1725414514730,3.62842,2377.8,2377.5,0.42697287]
[1725414514932,3.2078,2377.8,2377.5,0.00631287]
[1725414515134,3.2078,2377.8,2377.7,0.42063]
[1725414515436,0.42690287,2378.0,2377.7,0.42063]
[1725414515437,0.00631287,2378.0,2377.9,0.4206]
[1725414515736,0.00631287,2378.0,2377.9,4.7806]
[1725414515935,0.00631287,2378.0,2377.9,8.9862]
[1725414516137,0.00631287,2378.0,2377.9,4.7806]
[1725414516635,0.00631287,2378.0,2377.9,14.9862]
[1725414517338,0.00631287,2378.0,2377.9,8.9862]
[1725414517734,0.00631287,2378.0,2377.9,4.7806]
[1725414518129,2.87e-06,2378.0,2377.9,18.194]
[1725414518342,0.4204,2379.1,2378.6,0.42046]
[1725414518534,3.2078,2379.2,2378.9,0.42041]
[1725414519128,3.2078,2379.2,2379.1,0.42039]
[1725414519329,3.2078,2379.5,2379.1,8.5632]
[1725414519533,0.42034,2379.4,2379.1,4.36631287]
[1725414519833,0.42035,2379.3,2379.1,4.36631287]
[1725414520033,0.42035,2379.3,2379.1,0.00631287]
[1725414520242,1.05068,2379.8,2379.1,0.00631287]
[1725414520243,3.2078,2379.2,2379.1,0.00631287]
[1725414520544,3.2078,2379.2,2379.1,4.36631287]
[1725414520744,3.2078,2379.2,2379.1,8.56951287]
[1725414520946,3.2078,2379.2,2379.1,4.36631287]
[1725414521139,3.62812,2379.5,2379.1,4.36631287]
[1725414521346,0.42033,2379.4,2379.1,0.00631287]
[1725414521644,3.2078,2379.2,2379.1,0.00631287]
[1725414521839,3.62817,2379.2,2379.1,0.00631287]
[1725414522143,9.5792,2379.2,2379.1,0.00631287]
[1725414522354,3.62812,2379.5,2379.1,0.00631287]
[1725414522637,3.2078,2379.5,2379.1,0.00631287]
[1725414523345,3.62812,2379.5,2379.1,0.00631287]
[1725414523543,0.42036,2379.3,2379.1,0.00631287]
[1725414523747,3.62817,2379.2,2379.1,0.00631287]
[1725414523947,5.81937,2379.2,2379.1,0.00631287]
[1725414524144,10.02257,2379.2,2379.1,0.00631287]
[1725414525546,0.4204,2379.1,2378.6,7.09537]
[1725414526045,5.399,2379.2,2378.6,6.6749]
[1725414526245,5.399,2379.2,2378.8,0.42043]
[1725414526447,5.40531287,2379.2,2378.9,0.42042]
[1725414526648,0.00631287,2379.2,2379.0,0.42039]
[1725414526846,0.00631287,2379.2,2379.0,2.59539]
[1725414527042,0.00631287,2379.2,2378.9,0.2115936]
[1725414527249,0.42039,2379.1,2378.9,0.2115936]
[1725414527643,0.42039,2379.1,2378.8,0.00631287]
[1725414528046,3.63449287,2379.2,2378.8,0.42675287]
[1725414528359,0.00631287,2379.2,2379.0,0.4204]
[1725414528651,0.00631287,2379.2,2378.9,4.56848224]
[1725414529151,0.00631287,2379.2,2378.9,4.36]
[1725414529356,0.00631287,2379.2,2378.8,0.00631287]
[1725414529544,0.4204,2379.0,2378.8,0.00631287]
[1725414529855,5.84059,2379.1,2378.8,0.00631287]
[1725414530047,5.4202,2379.1,2378.8,0.00631287]
[1725414530251,1.47148,2378.9,2378.8,0.00631287]
[1725414530751,5.67548,2378.9,2378.8,0.00631287]
[1725414530941,4.62442,2378.9,2378.8,0.00631287]
[1725414531346,0.42042,2378.9,2378.8,0.00631287]
[1725414531655,4.62442,2378.9,2378.8,0.00631287]
[1725414532249,0.42042,2378.9,2378.8,0.00631287]
[1725414532449,0.4204,2379.0,2378.8,0.00631287]
[1725414532651,0.42042,2378.9,2378.8,0.00631287]
[1725414532846,0.42041,2379.0,2378.8,0.00631287]
[1725414533042,0.42042,2378.9,2378.8,0.00631287]
[1725414533651,3.2078,2379.1,2378.8,0.00631287]
[1725414533852,0.42042,2378.9,2378.8,0.00631287]
[1725414534442,3.2078,2379.1,2378.8,0.00631287]
[1725414534643,3.62819,2379.1,2378.8,0.00631287]
[1725414534849,0.00631287,2379.2,2378.9,4.78041]
[1725414535152,0.42669287,2379.2,2378.9,4.36]
[1725414535352,0.4204,2379.1,2378.9,4.36]
[1725414535650,0.42669287,2379.2,2378.9,4.36]
[1725414535954,0.00631287,2379.2,2378.9,4.78042]
[1725414536150,0.42669287,2379.2,2378.9,4.36]
[1725414536345,0.00631287,2379.2,2378.9,4.78041]
[1725414536546,0.42668287,2379.2,2378.9,4.36]
[1725414536752,0.42668287,2379.2,2378.9,4.78042]
[1725414537451,0.42669287,2379.2,2378.9,4.36]
[1725414538050,0.4204,2379.1,2378.8,2.21621287]
[1725414538248,0.42669287,2379.2,2378.8,2.21621287]
[1725414538545,0.00631287,2379.2,2378.9,0.42041]
[1725414538748,0.00631287,2379.2,2378.8,2.63664287]
[1725414538955,0.00631287,2379.2,2378.9,0.4204]
[1725414539156,0.00631287,2379.2,2379.0,0.4204]
[1725414539357,0.00631287,2379.2,2379.0,0.42039]
[1725414540052,0.00631287,2379.2,2378.8,2.21621287]
[1725414540245,0.42668287,2379.2,2378.8,2.21621287]
[1725414540557,0.42669287,2379.2,2378.9,4.36]
[1725414540753,0.42669287,2379.2,2378.8,0.00631287]
[1725414540754,0.42042,2378.9,2378.8,0.00631287]
[1725414541256,10.62442,2378.9,2378.8,0.00631287]
[1725414541648,11.67548,2378.9,2378.8,0.00631287]
[1725414541850,10.204,2378.9,2378.1,9.7471]
[1725414542049,0.42053,2378.3,2378.1,9.7471]
[1725414542351,3.2078,2378.5,2378.1,4.36]
[1725414542555,3.2078,2378.5,2378.4,0.42051]
[1725414542853,4.3975,2379.0,2378.5,0.42048]
[1725414542854,3.2078,2378.8,2378.5,0.42048]
[1725414543055,3.2078,2379.0,2378.6,4.36]
[1725414543258,3.2078,2379.0,2378.8,0.42042]
[1725414543449,3.2078,2379.0,2378.9,4.99162039]
[1725414543660,3.2078,2379.0,2378.9,4.78042]
[1725414543853,3.2078,2379.0,2378.9,8.98362]
[1725414544153,3.2078,2379.0,2378.9,9.19305443]
[1725414544354,3.2078,2379.0,2378.9,8.5632]
[1725414544555,0.00631287,2379.2,2379.0,0.42039]
[1725414544749,0.00631287,2379.2,2379.0,2.75749]
[1725414545150,0.00631287,2379.2,2379.0,2.3371]
[1725414545649,0.00631287,2379.2,2379.0,2.7575]
[1725414545958,0.00631287,2379.2,2379.0,2.3371]
[1725414546257,0.00631287,2379.2,2379.1,0.42039]
[1725414546760,0.00631287,2379.2,2379.0,2.3371]
[1725414547249,0.00631287,2379.2,2378.9,4.36]
[1725414547250,0.42669287,2379.2,2378.9,4.36]
[1725414547956,0.42039,2379.1,2378.7,2.3438]
[1725414548259,3.2078,2379.1,2378.6,4.36]
[1725414548646,2.2998,2379.0,2378.6,4.36]
[1725414548855,3.2078,2379.1,2378.6,4.36]
[1725414549053,3.2078,2379.1,2378.8,0.42044]
[1725414549254,3.2078,2379.1,2378.6,4.36]
[1725414549457,3.2078,2379.1,2378.9,4.78041]
[1725414550048,3.2078,2379.1,2378.9,4.36]
[1725414551155,3.2078,2379.1,2378.9,4.78042]
[1725414551355,3.2078,2379.1,2378.9,4.36]
[1725414551955,0.00631287,2379.2,2378.9,4.36]
[1725414552153,0.00631287,2379.2,2378.9,4.78042]
[1725414552555,0.00631287,2379.2,2378.9,4.78041]
[1725414552751,0.00631287,2379.2,2379.0,2.6304]
[1725414552951,0.00631287,2379.2,2379.0,2.21]
[1725414553554,0.00631287,2379.2,2379.0,2.6304]
[1725414554052,0.00631287,2379.2,2379.1,3.69039]
[1725414554760,0.00631287,2379.2,2379.1,3.27]
[1725414554960,0.00631287,2379.2,2379.1,3.69039]
[1725414555259,0.00631287,2379.2,2379.1,3.27]
[1725414555663,0.00631287,2379.2,2379.0,2.63039]
[1725414555664,0.42668287,2379.2,2379.0,2.21]
[1725414555857,0.42668287,2379.2,2378.9,3.27]
[1725414555858,3.2078,2379.1,2378.9,3.27]
[1725414556059,3.62819,2379.1,2378.9,3.27]
[1725414556258,3.2078,2379.1,2378.7,2.2605]
[1725414556453,3.62825,2378.8,2378.6,5.619]
[1725414557359,3.62825,2378.8,2378.4,0.42681287]
[1725414557360,0.42048,2378.6,2378.4,3.27631287]
[1725414557558,3.2078,2378.8,2378.4,3.27631287]
[1725414557760,0.42048,2378.6,2378.4,3.27631287]
[1725414558662,0.42047,2378.7,2378.4,3.27631287]
[1725414558865,3.2078,2378.8,2378.4,3.27631287]
[1725414559365,3.62824,2378.8,2378.5,0.42048]
[1725414559557,3.2078,2378.8,2378.6,3.27]
[1725414559955,3.62825,2378.8,2378.6,3.27]
[1725414560162,3.62824,2378.8,2378.6,3.27]
[1725414560360,3.2078,2378.8,2378.6,3.69047]
[1725414560560,3.2078,2378.8,2378.6,3.27]
[1725414560761,3.62825,2378.8,2378.6,3.27]
[1725414561066,3.2078,2378.8,2378.4,3.27631287]
[1725414561366,0.42047,2378.7,2378.4,3.27631287]
[1725414561562,3.2078,2378.8,2378.6,3.27]
[1725414561768,0.00631287,2379.2,2378.9,0.42041]
[1725414561964,0.00631287,2379.2,2378.9,3.69041]
[1725414562162,0.00631287,2379.2,2379.0,0.4204]
[1725414562470,0.00631287,2379.2,2378.9,3.27]
[1725414562471,0.00631287,2379.2,2378.9,3.69041]
[1725414563063,0.00631287,2379.2,2379.1,3.27]
[1725414563465,0.00631287,2379.2,2379.1,3.69039]
[1725414563674,0.00631287,2379.2,2379.1,3.27]
[1725414564372,0.00631287,2379.2,2379.1,3.69039]
[1725414564668,0.00631287,2379.2,2379.1,3.27]
[1725414565167,0.00631287,2379.2,2379.1,3.69039]
[1725414566071,0.00631287,2379.2,2379.1,0.42039]
[1725414568868,0.00631287,2379.2,2379.0,6.94109]
[1725414569165,4.62359,2379.1,2378.8,7.5678]
[1725414569366,0.42039,2379.1,2378.8,4.36]
[1725414569570,0.42669287,2379.2,2378.8,4.78044]
[1725414570070,0.42039,2379.1,2378.8,4.78044]
[1725414570475,3.2078,2379.0,2378.8,4.36]
[1725414570668,0.42045,2378.8,2378.5,8.9926]
[1725414571169,0.42049,2378.5,2378.4,0.00631287]
[1725414571473,0.42048,2378.6,2378.4,0.00631287]
[1725414571675,3.62826,2378.7,2378.4,4.36631287]
[1725414571875,3.2078,2378.7,2378.4,4.36631287]
[1725414572080,0.42049,2378.5,2378.4,4.36631287]
[1725414572777,3.2078,2378.7,2378.4,4.36631287]
[1725414573166,3.62827,2378.7,2378.4,4.36631287]
[1725414573978,3.2078,2378.7,2378.4,4.36631287]
[1725414574175,3.62827,2378.7,2378.4,4.36631287]
[1725414574973,0.42048,2378.6,2378.4,4.36631287]
[1725414575171,0.42049,2378.5,2378.4,4.36631287]
[1725414575683,3.2078,2378.7,2378.4,4.36631287]
[1725414575878,0.42048,2378.6,2378.4,4.36631287]
[1725414576173,0.42047,2378.6,2378.4,4.36631287]
[1725414576376,0.42049,2378.5,2378.4,0.00631287]
[1725414576580,1.47173,2378.5,2378.4,0.00631287]
[1725414576781,11.67653,2378.5,2378.4,0.00631287]
[1725414576980,16.10243,2378.5,2378.4,0.00631287]
[1725414577276,15.05119,2378.5,2378.4,0.00631287]
[1725414577483,9.05119,2378.5,2378.4,0.00631287]
[1725414577681,2.68749,2378.5,2378.4,0.00631287]
[1725414581570,3.62826,2378.7,2378.4,0.00631287]
[1725414581773,0.42047,2378.6,2378.4,0.00631287]
[1725414581977,0.42049,2378.5,2378.4,0.00631287]
[1725414582374,3.2078,2378.7,2378.4,0.00631287]
[1725414582674,3.2078,2378.7,2378.4,0.42682287]
[1725414582878,3.2078,2379.0,2378.4,4.36631287]
[1725414583078,1.05078,2379.6,2378.4,4.78682287]
[1725414583079,3.2078,2378.5,2378.4,4.78682287]
[1725414583584,3.2078,2378.5,2378.4,8.99162287]
[1725414584074,3.2078,2378.9,2378.4,8.57111287]
[1725414584275,3.2078,2378.9,2378.7,0.42044]
[1725414584886,3.2078,2378.9,2378.4,4.36631287]
[1725414584887,0.42046,2378.7,2378.4,4.36631287]
[1725414585183,0.42046,2378.7,2378.4,4.78682287]
[1725414585580,3.2078,2378.9,2378.4,7.57411287]
[1725414585786,3.62822,2378.9,2378.7,4.36]
[1725414585974,3.2078,2378.9,2378.7,4.36]
[1725414586178,3.62823,2378.9,2378.7,4.36]
[1725414586374,0.42044,2378.8,2378.7,4.36]
[1725414586578,3.62823,2378.9,2378.7,4.36]
[1725414587082,3.2078,2378.9,2378.7,4.36]
[1725414587985,3.2078,2378.9,2378.8,3.27]
[1725414588384,3.2078,2378.9,2378.8,7.474]
[1725414588686,3.2078,2378.9,2378.8,3.27]
[1725414589584,3.2078,2378.9,2378.8,7.89444]
[1725414589787,3.2078,2378.9,2378.8,7.474]
[1725414590388,3.2078,2378.9,2378.8,3.27]
[1725414591279,3.2078,2378.9,2378.8,3.69044]
[1725414592686,0.00631287,2379.2,2378.9,0.42041]
[1725414592893,0.00631287,2379.2,2378.9,2.70741]
[1725414593086,0.00631287,2379.2,2378.9,2.287]
[1725414593290,0.00631287,2379.2,2379.0,0.4204]
[1725414593490,0.00631287,2379.2,2379.0,3.27]
[1725414593686,0.00631287,2379.2,2379.0,3.69039]
[1725414593883,0.00631287,2379.2,2379.0,3.27]
[1725414594102,0.42668287,2379.2,2379.0,3.27]
[1725414594292,0.42041,2379.0,2378.8,3.27]
[1725414594587,0.42041,2379.0,2378.6,2.77317]
[1725414594588,0.42041,2379.0,2378.7,3.27]
[1725414594787,0.42041,2379.0,2378.6,0.42047]
[1725414594788,3.2078,2379.1,2378.5,5.557]
[1725414594994,3.2078,2378.8,2378.5,3.27]
[1725414595182,3.2078,2378.8,2378.7,3.27]
[1725414596291,3.2078,2379.1,2378.7,3.27]
[1725414596593,3.62819,2379.1,2379.0,3.27]
[1725414597194,3.2078,2379.1,2379.0,3.27]
[1725414597797,0.42668287,2379.2,2379.0,3.27]
[1725414598188,0.00631287,2379.2,2379.0,3.27]
[1725414598389,0.00631287,2379.2,2379.0,3.6904]
[1725414598596,0.00631287,2379.2,2379.0,3.27]
[1725414599498,0.42039,2379.1,2379.0,3.27]
[1725414599799,0.42041,2379.0,2378.8,3.27]
[1725414599996,0.4204,2379.0,2378.8,3.27]
[1725414600197,0.42042,2378.9,2378.8,3.27]
[1725414600390,3.2078,2379.1,2378.8,3.27]
[1725414600594,0.42045,2378.8,2378.5,3.27]
[1725414600794,0.42045,2378.8,2378.5,3.69048]
[1725414601796,0.42046,2378.7,2378.5,3.27]
[1725414601999,0.42045,2378.8,2378.5,3.69049]
[1725414602192,0.42046,2378.7,2378.5,3.27]
[1725414602397,0.42047,2378.6,2378.5,3.27]
[1725414603400,2.2269,2378.7,2378.5,3.27]
[1725414603595,3.62825,2378.8,2378.5,3.69048]
[1725414603790,3.2078,2378.8,2378.7,3.27]
[1725414604404,3.2078,2378.8,2378.7,3.69046]
[1725414604602,3.2078,2379.1,2378.9,0.42041]
[1725414604797,3.2078,2379.1,2378.9,3.69041]
[1725414605697,3.62819,2379.1,2378.9,3.27]
[1725414605997,0.4204,2379.0,2378.9,3.27]
[1725414606298,0.42045,2378.8,2378.7,3.27]
[1725414606597,0.42042,2379.0,2378.7,3.27]
[1725414606795,3.2078,2379.1,2378.7,3.27]
[1725414606999,0.00631287,2379.2,2379.0,3.6904]
[1725414607700,0.00631287,2379.2,2379.0,3.27]
[1725414608605,0.00631287,2379.2,2379.0,3.6904]
[1725414608904,0.00631287,2379.2,2379.0,3.27]
[1725414609503,0.42668287,2379.2,2379.0,3.27]
[1725414609701,0.42039,2379.1,2379.0,3.27]
[1725414610596,0.42039,2379.1,2378.8,3.27]
[1725414611099,3.21411287,2379.2,2378.8,3.27]
[1725414611297,0.4204,2379.0,2378.8,3.27]
[1725414611707,0.42042,2378.9,2378.8,3.27]
[1725414612000,0.42042,2378.9,2378.4,0.00631287]
[1725414612001,0.42047,2378.7,2378.6,3.27]
[1725414613302,4.5045,2378.8,2378.6,3.27]
[1725414613303,4.92495,2378.8,2378.6,3.27]
[1725414613499,2.3196,2379.1,2378.7,0.42046]
[1725414613709,0.42039,2379.1,2378.8,3.69044]
[1725414614300,2.32331287,2379.2,2379.0,3.27]
[1725414614510,0.00631287,2379.2,2379.0,3.27]
[1725414614698,0.00631287,2379.2,2379.1,0.42039]
[1725414615005,0.00631287,2379.2,2379.1,2.70769]
[1725414615612,0.00631287,2379.2,2379.1,2.2873]
[1725414615996,0.00631287,2379.2,2379.0,3.27]
[1725414616196,0.00631287,2379.2,2379.0,3.6904]
[1725414616618,0.00631287,2379.2,2379.0,3.27]
[1725414617006,0.00631287,2379.2,2379.0,3.6904]
[1725414617514,0.00631287,2379.2,2379.0,3.27]
[1725414618311,0.00631287,2379.2,2379.0,3.6904]
[1725414619114,0.00631287,2379.2,2379.1,0.42039]
[1725414622718,3.2078,2379.6,2379.4,0.42032]
[1725414622920,3.2078,2379.6,2379.5,5.6362]
[1725414623419,3.2078,2379.6,2379.5,6.05651]
[1725414623713,3.2078,2379.6,2379.5,5.6362]
[1725414624713,3.2078,2379.6,2379.5,6.05651]
[1725414625715,3.2078,2379.6,2379.5,10.25891]
[1725414626413,3.2078,2379.6,2379.5,9.8386]
[1725414627216,3.2078,2379.6,2379.5,5.6362]
[1725414627418,3.2078,2379.6,2379.5,10.25891]
[1725414627814,0.12069167,2379.7,2379.6,0.4203]
[1725414628118,0.00631287,2379.8,2379.7,0.42028]
[1725414628319,0.2,2380.0,2379.9,0.42024]
[1725414628511,0.2,2380.0,2379.9,3.69024]
[1725414628818,0.2,2380.0,2379.9,3.27]
[1725414629206,0.2,2380.0,2379.9,3.69024]
[1725414631317,1.05025,2380.8,2379.9,3.69024]
[1725414631318,0.42011,2380.7,2380.3,0.42017]
[1725414631627,0.42011,2380.7,2380.6,3.27]
[1725414631819,3.39781,2381.3,2380.6,3.27]
[1725414631820,0.41983,2382.3,2380.6,6.8268]
[1725414632025,0.41986,2382.1,2382.0,3.27]
[1725414632411,0.41986,2382.1,2381.4,2.3735]
[1725414632412,10.1984,2382.1,2381.6,3.27]
[1725414632613,0.41993,2381.7,2381.6,3.27]
[1725414633427,3.2078,2381.9,2381.6,3.27]
[1725414633618,0.41991,2381.8,2381.6,3.27]
[1725414634013,0.41993,2381.7,2381.6,3.27]
[1725414634416,4.1984,2381.7,2381.6,3.27]
[1725414634627,4.61833,2381.7,2381.6,3.27]
[1725414634820,4.1984,2381.7,2381.6,3.27]
[1725414635126,3.32565026,2381.9,2381.6,3.27]
[1725414635621,0.41993,2381.7,2381.6,3.27]
[1725414635820,0.41992,2381.8,2381.6,3.27]
[1725414636423,0.41993,2381.7,2381.6,3.27]
[1725414636818,3.32565026,2381.9,2381.6,3.27]
[1725414637014,0.41993,2381.7,2381.6,3.27]
[1725414637619,0.41991,2381.8,2381.6,3.27]
[1725414637826,5.54555026,2381.9,2381.6,3.27]
[1725414638015,0.41991,2381.8,2381.6,3.27]
[1725414638617,0.41993,2381.7,2381.6,3.27]
[1725414639713,5.54555026,2381.9,2381.6,3.27]
[1725414639714,0.41992,2381.8,2381.6,3.27]
[1725414639924,5.96545026,2381.9,2381.6,3.27]
[1725414640115,3.2078,2381.9,2381.6,3.27]
[1725414640316,3.2078,2381.9,2381.6,3.68994]
[1725414640516,4.1984,2381.8,2381.3,3.2078]
[1725414640723,0.42014,2380.5,2380.4,0.212]
[1725414640928,0.42013,2380.6,2380.1,3.27]
[1725414641119,3.27,2380.8,2379.8,11.26523866]
[1725414641323,0.42018,2380.3,2379.8,11.47645]
[1725414641524,3.27,2380.4,2379.5,1.03668899]
[1725414641719,0.4203,2379.6,2379.5,1.03668899]
[1725414642121,4.6227,2379.6,2379.5,1.03668899]
[1725414642422,2.59748,2379.8,2379.5,1.03668899]
[1725414642626,0.42021,2380.1,2379.5,1.03668899]
[1725414642921,0.42027,2379.8,2379.5,1.03668899]
[1725414643116,0.42028,2379.7,2379.5,1.03668899]
[1725414643317,0.4203,2379.6,2379.5,1.03668899]
[1725414643718,10.6227,2379.6,2379.5,1.03668899]
[1725414643918,14.88125,2379.6,2379.5,1.03668899]
[1725414644122,0.42033,2379.4,2379.3,1.5613327]
[1725414644527,4.62353,2379.4,2379.3,1.5613327]
[1725414644721,10.62353,2379.4,2379.3,1.5613327]
[1725414644930,0.42044,2378.8,2378.2,0.212]
[1725414645125,3.2078,2379.0,2378.2,0.42054]
[1725414645332,3.2078,2379.0,2378.1,6.5943]
[1725414645526,0.42043,2378.9,2378.1,7.01486]
[1725414645730,3.2078,2379.0,2378.2,0.42053]
[1725414645731,0.42041,2379.0,2378.2,0.42053]
[1725414645936,0.00629921,2378.8,2378.4,0.00629921]
[1725414646721,0.00629921,2378.8,2378.4,4.36629921]
[1725414646925,0.00629921,2378.8,2378.5,0.42048]
[1725414647124,0.00629921,2378.8,2378.4,4.36629921]
[1725414647931,0.00629921,2378.8,2378.4,4.78679921]
[1725414648333,0.00629921,2378.8,2378.4,4.36629921]
[1725414648727,0.00629921,2378.8,2378.6,0.42046]
[1725414648928,0.00629921,2378.8,2378.7,4.36]
[1725414650229,0.00629921,2378.8,2378.4,0.00629921]
[1725414650630,3.2078,2378.6,2378.4,0.00629921]
[1725414650829,3.62829,2378.6,2378.4,0.00629921]
[1725414651938,3.2078,2378.6,2378.4,0.00629921]
[1725414652436,3.62827,2378.6,2378.4,0.00629921]
[1725414653034,0.42049,2378.5,2378.4,0.00629921]
[1725414653230,4.62449,2378.5,2378.4,0.00629921]
[1725414654733,0.00629921,2378.8,2378.4,0.00629921]
[1725414654734,0.42046,2378.7,2378.4,0.00629921]
[1725414654938,0.00629921,2378.8,2378.4,0.00629921]
[1725414654939,0.42048,2378.6,2378.4,0.00629921]
[1725414655135,0.42046,2378.7,2378.4,0.00629921]
[1725414655342,0.00629921,2378.8,2378.4,0.00629921]
[1725414655343,0.42048,2378.6,2378.4,0.00629921]
[1725414655537,0.42049,2378.5,2378.4,0.00629921]
[1725414656548,4.62529,2378.5,2378.4,0.00629921]
[1725414657749,0.42056,2378.1,2378.0,3.2078]
[1725414658143,0.42062,2377.8,2377.6,2.3041]
[1725414658546,0.42061,2377.9,2377.6,2.3041]
[1725414659444,0.42059,2378.0,2377.6,2.72475]
[1725414659743,0.42059,2378.0,2377.7,2.3]
[1725414660139,0.4206,2377.9,2377.7,2.3]
[1725414660334,3.2078,2378.4,2377.8,4.36]
[1725414660846,0.42056,2378.2,2377.8,0.42061]
[1725414661041,0.42057,2378.1,2377.7,2.72062]
[1725414661243,3.2078,2378.4,2377.7,2.3]
[1725414661646,1.05132,2378.3,2377.7,2.3]
[1725414661950,0.42063,2377.7,2377.6,2.3041]
[1725414662343,0.42065,2377.6,2377.5,0.00629921]
[1725414662548,5.67788,2377.6,2377.5,0.00629921]
[1725414662843,4.62625,2377.6,2377.5,0.00629921]
[1725414663846,10.62625,2377.6,2377.5,0.00629921]
[1725414665445,4.62625,2377.6,2377.5,0.00629921]
[1725414666147,0.42064,2377.7,2377.5,0.00629921]
[1725414666443,4.5592,2378.0,2377.5,0.00629921]
[1725414666653,3.62838,2378.1,2377.6,0.42065]
[1725414666944,0.62533451,2377.9,2377.7,8.9653]
[1725414667145,12.4,2377.8,2377.7,13.1709]
[1725414667445,4.0298,2377.8,2377.7,13.59153]
[1725414667645,0.42048,2378.6,2378.1,0.42056]
[1725414667947,0.42051,2378.4,2377.9,3.62838]
[1725414668343,0.42052,2378.4,2377.9,3.62838]
[1725414668541,0.42052,2378.4,2377.9,7.98838]
[1725414668738,0.42053,2378.3,2377.9,7.9884]
[1725414668940,0.42052,2378.4,2377.9,7.9884]
[1725414669145,3.3304095,2378.8,2377.9,7.5678]
[1725414669440,3.3304095,2378.8,2378.2,0.42054]
[1725414669737,0.42047,2378.7,2377.9,7.5678]
[1725414669945,3.2078,2378.2,2377.0,0.212]
[1725414670146,0.1226095,2378.8,2376.4,0.212]
[1725414670147,3.2078,2377.4,2376.4,0.212]
[1725414670350,3.2078,2377.7,2376.9,7.5678]
[1725414670548,4.3869,2378.1,2377.0,5.5198]
[1725414670549,3.2078,2378.0,2377.0,5.5198]
[1725414670751,3.62844,2377.7,2377.2,0.42071]
[1725414671046,3.21409921,2377.7,2377.3,2.1673]
[1725414671245,0.42069,2377.4,2377.3,2.1673]
[1725414671449,0.42069,2377.4,2377.2,0.00629921]
[1725414671450,0.4207,2377.3,2377.2,0.00629921]
[1725414673045,11.67887,2377.3,2377.2,0.00629921]
[1725414673353,0.4207,2377.3,2377.2,0.00629921]
[1725414673546,4.6271,2377.3,2377.2,0.00629921]
[1725414674249,0.4207,2377.3,2377.2,0.00629921]
[1725414674750,5.67887,2377.3,2377.2,0.00629921]
[1725414675150,10.03887,2377.3,2377.2,0.00629921]
[1725414676254,10.24652206,2377.3,2377.2,9.21e-06]
[1725414677045,10.36292505,2377.3,2377.2,9.21e-06]
[1725414677348,10.15527299,2377.3,2377.2,9.21e-06]
[1725414678142,17.41520008,2377.3,2377.2,9.21e-06]
[1725414678348,17.20704299,2377.3,2377.2,9.21e-06]
[1725414678954,17.42206009,2377.3,2377.2,9.21e-06]
[1725414679457,0.53710299,2377.3,2377.2,9.21e-06]
[1725414679654,0.4207,2377.3,2377.2,9.21e-06]